bitfinex/quotes_ETHUSD_20260219
["timestamp","ask_amount","ask_price","bid_price","bid_amount"]
[1771491289848,0.0011,1971.1,1970.7,2.3563572]
[1771491295316,0.0011,1971.1,1970.8,1.08677252]
[1771491295645,0.9071,1971.4,1970.9,6.65402049]
[1771491295820,0.9071,1971.4,1970.9,1.08677252]
[1771491297444,0.9071,1971.4,1971.0,2.35516419]
[1771491298150,0.0011,1971.4,1971.1,1.08677252]
[1771491298474,0.0011,1971.4,1971.0,2.35516419]
[1771491298952,0.0011,1971.4,1971.0,1.26839167]
[1771491300651,1.01531089,1971.4,1970.9,1.26840906]
[1771491300826,1.01531089,1971.4,1970.8,1.26848803]
[1771491301646,1.01531089,1971.4,1970.8,1.26948803]
[1771491301833,0.0011,1971.3,1970.8,1.26948803]
[1771491302035,1.01531089,1971.3,1970.8,1.26948803]
[1771491302218,2.28247387,1971.2,1970.8,0.001]
[1771491302424,1.01421089,1971.2,1970.8,0.001]
[1771491307350,0.0011,1971.3,1970.8,0.97094392]
[1771491307742,0.0011,1971.3,1970.9,1.26845603]
[1771491308031,0.906,1971.2,1970.9,1.26845603]
[1771491308535,0.9071,1971.3,1970.9,2.23839995]
[1771491312571,0.96068335,1971.4,1971.0,0.96994392]
[1771491312572,0.0011,1971.4,1971.0,0.96994392]
[1771491312752,0.9061,1971.4,1971.0,0.96994392]
[1771491312958,0.0011,1971.4,1971.0,0.96994392]
[1771491313980,0.0011,1971.2,1971.0,0.96994392]
[1771491314474,0.0011,1971.2,1971.1,1.26832732]
[1771491321283,0.0011,1971.2,1971.1,2.23827124]
[1771491321792,0.0011,1971.2,1971.1,1.26832732]
[1771491329875,0.0011,1971.3,1971.1,1.26832732]
[1771491332297,0.0011,1971.3,1971.0,1.2693458]
[1771491332795,0.0011,1971.3,1971.0,0.001]
[1771491333086,0.0011,1971.3,1971.0,1.26938702]
[1771491334182,0.95958335,1971.2,1971.0,0.001]
[1771491335075,0.0011,1971.3,1971.0,1.26935892]
[1771491335373,0.901,1971.2,1971.0,1.26935892]
[1771491335685,0.9021,1971.3,1971.0,1.26935892]
[1771491336278,0.9021,1971.3,1971.0,0.001]
[1771491336890,0.0011,1971.3,1971.0,0.001]
[1771491337871,0.0011,1971.3,1971.1,0.001]
[1771491338196,0.0011,1971.2,1971.1,0.001]
[1771491343906,0.0011,1971.3,1971.1,0.001]
[1771491345007,0.95239834,1971.6,1971.1,0.001]
[1771491345304,0.95239834,1971.6,1971.1,1.26928171]
[1771491345501,0.0011,1971.6,1971.1,2.2209213]
[1771491345872,0.0011,1971.6,1971.2,0.95163959]
[1771491346287,0.0011,1971.6,1971.1,1.26928171]
[1771491346288,0.95239834,1971.6,1971.1,1.26928171]
[1771491347097,0.95239834,1971.6,1971.1,0.001]
[1771491349610,0.0011,1971.5,1971.1,0.001]
[1771491359501,0.95239834,1971.5,1971.1,0.001]
[1771491361929,0.95239834,1971.5,1971.2,0.001]
[1771491362307,0.0011,1971.4,1971.2,0.001]
[1771491362622,0.9103865,1971.4,1971.2,0.001]
[1771491364208,0.0011,1971.4,1971.2,0.001]
[1771491367632,0.0011,1971.4,1971.2,1.26926298]
[1771491371830,0.0011,1971.4,1971.2,2.13999525]
[1771491374445,0.0011,1971.4,1971.3,0.001]
[1771491374649,0.0011,1971.4,1971.3,0.87173227]
[1771491375536,0.0011,1971.4,1971.3,0.001]
[1771491380547,0.89084841,1971.4,1971.3,0.001]
[1771491382175,0.89084841,1971.4,1971.0,0.001]
[1771491382176,0.88974841,1971.3,1971.0,0.001]
[1771491382326,0.88974841,1971.0,1970.6,0.001]
[1771491382524,0.88974841,1971.0,1970.6,0.003]
[1771491383741,0.88974841,1971.0,1970.6,0.001]
[1771491384452,2.15815601,1971.0,1970.6,0.001]
[1771491385058,0.895,1970.9,1970.6,0.87373227]
[1771491385422,1.26823166,1971.3,1970.7,0.87273227]
[1771491385628,0.895,1971.2,1970.7,0.87273227]
[1771491385823,0.895,1971.2,1970.8,0.87273227]
[1771491386028,0.895,1971.2,1970.8,0.87073227]
[1771491386650,0.895,1971.2,1970.9,1.26845603]
[1771491387383,0.8961,1971.3,1971.0,0.87273227]
[1771491387596,0.8961,1971.3,1971.0,0.002]
[1771491388159,0.0011,1971.3,1971.0,0.002]
[1771491388387,0.8961,1971.3,1971.0,0.002]
[1771491389593,0.8961,1971.3,1971.1,0.002]
[1771491391688,0.8961,1971.3,1970.8,1.26846836]
[1771491392358,0.8961,1971.3,1970.8,2.13920063]
[1771491392562,0.8961,1971.3,1970.9,0.87073227]
[1771491394194,0.0011,1971.3,1970.9,2.13913207]
[1771491394478,0.896,1971.2,1970.9,2.13913207]
[1771491395061,0.0011,1971.3,1971.0,0.87273227]
[1771491395382,0.8971,1971.3,1971.0,0.87273227]
[1771491396096,0.0011,1971.3,1971.1,0.87273227]
[1771491396288,0.0011,1971.3,1971.0,1.2703502]
[1771491396582,0.0011,1971.3,1971.0,2.13908247]
[1771491398188,0.0011,1971.3,1970.9,5.07372364]
[1771491398189,0.0011,1971.3,1971.2,1.26826298]
[1771491398360,0.0011,1971.3,1971.0,5.87725799]
[1771491398756,0.0011,1971.3,1971.0,2.07221578]
[1771491398972,0.0011,1971.3,1971.1,0.002]
[1771491399762,0.0011,1971.3,1971.1,0.80382411]
[1771491400693,0.0011,1971.3,1971.1,0.002]
[1771491403388,0.0011,1971.3,1971.1,0.80382411]
[1771491403973,0.0011,1971.3,1971.2,0.80382411]
[1771491404273,0.0011,1971.3,1971.2,0.80182411]
[1771491404473,0.0011,1971.3,1971.1,0.002]
[1771491404679,0.0011,1971.3,1971.2,0.002]
[1771491404981,0.0011,1971.3,1971.1,0.80382411]
[1771491405483,0.0011,1971.3,1971.2,0.002]
[1771491405665,0.0011,1971.3,1971.1,0.002]
[1771491407094,0.0011,1971.3,1971.2,0.002]
[1771491407273,0.0011,1971.3,1971.1,0.002]
[1771491407473,0.0011,1971.3,1971.0,2.0701575]
[1771491408266,0.0011,1971.3,1971.1,0.002]
[1771491408995,0.0011,1971.3,1971.0,1.26833339]
[1771491409298,0.0011,1971.3,1971.1,0.002]
[1771491409995,0.0011,1971.2,1971.1,0.002]
[1771491414595,0.0011,1971.2,1970.8,5.07494718]
[1771491414596,0.0011,1971.2,1970.8,1.26946936]
[1771491414771,0.81746203,1971.2,1970.9,0.002]
[1771491415400,0.81746203,1971.2,1970.8,1.26946936]
[1771491415579,0.81746203,1971.2,1970.9,0.002]
[1771491416485,0.0011,1971.2,1970.9,0.002]
[1771491417600,0.0011,1971.2,1971.0,0.002]
[1771491417796,0.0011,1971.2,1970.9,0.002]
[1771491421384,0.0011,1971.1,1970.9,0.002]
[1771491422004,0.0011,1971.1,1970.8,0.79997922]
[1771491422204,0.0011,1971.1,1970.9,0.002]
[1771491422711,0.8951,1971.3,1971.0,0.002]
[1771491422909,0.8951,1971.3,1970.9,0.002]
[1771491422910,2.93402178,1971.3,1970.9,0.002]
[1771491423082,0.77072295,1971.2,1970.9,0.002]
[1771491424312,0.77072295,1971.1,1970.8,0.001]
[1771491424496,0.77072295,1971.1,1970.8,0.003]
[1771491424910,2.16333521,1971.3,1970.8,0.003]
[1771491424911,2.93405816,1971.3,1970.8,0.003]
[1771491425083,0.77072295,1971.2,1970.8,0.003]
[1771491426604,2.16330175,1971.3,1970.8,0.001]
[1771491426605,1.69644087,1971.3,1970.8,0.001]
[1771491426813,1.69644087,1971.3,1970.9,0.002]
[1771491432422,2.96464702,1971.3,1970.9,0.002]
[1771491433411,2.96464702,1971.3,1970.9,0.003]
[1771491433794,0.0011,1971.2,1970.9,0.003]
[1771491434296,0.897,1971.1,1971.0,0.002]
[1771491434905,0.0011,1971.2,1971.0,0.002]
[1771491435105,0.8981,1971.2,1971.1,0.002]
[1771491435309,0.8981,1971.2,1971.0,0.002]
[1771491435615,0.0011,1971.2,1971.0,0.002]
[1771491435804,0.8981,1971.2,1971.0,0.002]
[1771491436637,0.0011,1971.2,1971.1,0.002]
[1771491436818,0.0011,1971.7,1971.0,12.40744749]
[1771491436991,1.52011864,1973.6,1971.0,12.40744749]
[1771491436992,3.686398,1972.3,1971.7,0.81511739]
[1771491437319,3.686398,1972.3,1971.3,0.81511739]
[1771491437320,0.80134087,1972.2,1971.3,0.81511739]
[1771491437909,0.80134087,1972.2,1971.4,0.81511739]
[1771491438218,0.897,1972.1,1971.4,0.81511739]
[1771491439796,2.96602798,1972.1,1971.5,2.08318738]
[1771491440820,1.69834087,1972.1,1971.5,2.08318738]
[1771491441702,2.9660272,1972.1,1971.5,2.08318738]
[1771491441903,1.69834087,1972.1,1971.5,2.08318738]
[1771491442423,0.80134087,1972.1,1971.5,2.08318738]
[1771491442625,0.896,1972.0,1971.5,2.08318738]
[1771491445320,0.896,1972.0,1971.6,0.001]
[1771491445520,0.8971,1972.0,1971.6,0.001]
[1771491449213,0.0011,1972.0,1971.6,0.81611739]
[1771491449418,0.8961,1972.0,1971.6,0.81611739]
[1771491449820,0.0011,1972.0,1971.6,0.001]
[1771491460431,0.0011,1972.0,1971.8,0.76444725]
[1771491461255,2.16166238,1972.3,1971.8,0.76444725]
[1771491461413,0.69665392,1972.0,1971.6,0.001]
[1771491462319,1.96441408,1972.0,1971.6,0.001]
[1771491462540,0.69665392,1971.9,1971.6,0.001]
[1771491462722,0.69665392,1971.7,1971.5,0.001]
[1771491463644,0.69665392,1971.6,1971.3,0.001]
[1771491463934,2.50365392,1971.8,1971.3,1.26917138]
[1771491464138,1.96441408,1972.0,1971.3,2.03361863]
[1771491464338,0.894,1971.7,1971.3,2.03361863]
[1771491466163,0.69665392,1971.6,1971.3,0.001]
[1771491466648,2.16194285,1971.7,1971.3,0.001]
[1771491467951,0.894,1971.7,1971.3,0.001]
[1771491469819,0.894,1971.7,1971.4,0.001]
[1771491471946,0.69665392,1971.8,1971.4,0.001]
[1771491472123,0.895,1971.7,1971.4,0.001]
[1771491474851,0.69665392,1971.6,1971.1,0.001]
[1771491475615,0.69665392,1971.6,1971.1,1.26932172]
[1771491476546,2.1629506,1971.7,1971.1,1.26932172]
[1771491476736,5.07151017,1971.8,1971.1,1.26932172]
[1771491476737,0.896,1971.6,1971.3,2.0326459]
[1771491477849,0.914,1971.8,1971.3,2.0326459]
[1771491477850,0.8971,1971.9,1971.4,0.76444725]
[1771491478437,0.0011,1971.9,1971.4,0.76444725]
[1771491478641,0.8971,1971.9,1971.4,0.76444725]
[1771491479548,0.8971,1971.9,1971.5,2.03251724]
[1771491482452,0.0011,1971.9,1971.5,2.03251724]
[1771491482653,0.0011,1971.9,1971.6,0.69769497]
[1771491482654,0.8971,1971.9,1971.6,0.69769497]
[1771491483158,0.0011,1971.8,1971.6,0.69769497]
[1771491483753,0.0011,1971.8,1971.6,1.96564339]
[1771491487258,0.0011,1971.9,1971.6,1.96564339]
[1771491487436,0.0011,1972.0,1971.7,0.72648457]
[1771491489647,0.0011,1972.0,1971.7,1.99438096]
[1771491490258,0.0011,1972.0,1971.8,0.72648457]
[1771491492061,0.0011,1972.0,1971.7,1.26789639]
[1771491495887,0.0011,1972.0,1971.7,1.26889639]
[1771491496193,0.0011,1971.9,1971.7,1.99538096]
[1771491497282,0.0011,1971.9,1971.7,1.26889639]
[1771491498349,0.0011,1971.9,1971.7,1.99538096]
[1771491498767,0.0011,1972.1,1971.8,0.72648457]
[1771491499779,0.0011,1972.2,1971.9,1.99429733]
[1771491501991,0.72189428,1972.2,1971.8,1.26783969]
[1771491502166,0.72189428,1972.2,1971.7,1.26889878]
[1771491502361,5.56377419,1972.0,1971.7,0.001]
[1771491502689,0.0011,1972.2,1971.7,0.001]
[1771491502690,0.72079428,1971.9,1971.7,0.001]
[1771491503060,1.61279428,1972.0,1971.7,0.001]
[1771491503260,0.72189428,1972.2,1971.7,1.26893079]
[1771491503564,0.72079428,1971.9,1971.5,0.001]
[1771491503965,0.72079428,1971.8,1971.5,0.001]
[1771491504487,5.79192022,1972.0,1971.5,0.001]
[1771491504790,0.893,1972.0,1971.7,5.56377419]
[1771491505093,0.893,1972.0,1971.7,0.72648457]
[1771491505271,0.893,1972.0,1971.5,0.72748457]
[1771491505474,0.893,1972.1,1971.5,0.72748457]
[1771491508266,0.893,1972.1,1971.6,1.99549025]
[1771491508469,0.8941,1972.1,1971.6,1.99549025]
[1771491508670,0.0011,1972.1,1971.7,0.72648457]
[1771491510299,0.0011,1972.1,1971.8,1.26787706]
[1771491511080,0.0011,1972.1,1971.7,1.26790038]
[1771491512798,0.0011,1972.1,1971.7,1.99438495]
[1771491513399,0.72189428,1972.1,1971.6,0.001]
[1771491513574,0.72079428,1972.0,1971.6,1.2690036]
[1771491513967,0.72079428,1972.0,1971.6,0.001]
[1771491518603,0.0011,1972.1,1971.6,0.001]
[1771491519506,1.90149055,1972.1,1971.6,0.001]
[1771491520003,0.6337999,1972.1,1971.6,0.001]
[1771491520377,0.6337999,1972.1,1971.7,0.001]
[1771491520577,0.0011,1972.0,1971.7,0.001]
[1771491522915,0.0011,1972.0,1971.7,0.65491038]
[1771491523127,0.0011,1972.1,1971.7,0.65491038]
[1771491523128,0.0011,1972.1,1971.8,0.65391038]
[1771491523281,0.0011,1972.2,1971.9,0.65391038]
[1771491525685,0.0011,1972.2,1972.0,1.26774847]
[1771491527184,0.0011,1972.2,1972.0,1.92165885]
[1771491527390,0.0011,1972.2,1972.1,0.65391038]
[1771491527588,0.0011,1972.2,1972.1,1.92159457]
[1771491529410,0.6326999,1973.0,1972.2,0.65391038]
[1771491529589,1.26707847,1973.1,1972.2,0.65391038]
[1771491529590,0.6326999,1972.9,1972.2,0.65391038]
[1771491529794,0.6326999,1972.8,1972.3,1.26755564]
[1771491532033,0.6339999,1972.7,1972.3,1.26755564]
[1771491532329,0.6339999,1972.7,1972.2,1.26756741]
[1771491532507,0.0013,1972.6,1972.2,1.26756741]
[1771491533495,0.0013,1972.6,1972.3,0.65391038]
[1771491533910,0.0013,1972.6,1972.4,1.26749138]
[1771491535405,0.8921,1972.7,1972.4,1.26749138]
[1771491535704,0.0013,1972.6,1972.4,1.26749138]
[1771491539213,0.0011,1972.7,1972.4,1.26749138]
[1771491539409,0.0013,1972.6,1972.4,1.92140176]
[1771491539602,0.0024,1972.7,1972.4,1.92140176]
[1771491540179,0.0024,1972.7,1972.4,1.26749138]
[1771491541511,0.0024,1972.7,1972.4,0.65106935]
[1771491541892,0.0011,1972.7,1972.4,0.65106935]
[1771491542098,0.0011,1972.7,1972.2,1.91868926]
[1771491542409,0.0024,1972.7,1972.2,1.91868926]
[1771491542988,0.0024,1972.7,1972.3,0.65106935]
[1771491543723,0.0024,1972.7,1972.4,1.26749138]
[1771491545924,0.0013,1972.6,1972.4,0.001]
[1771491546302,0.0013,1972.6,1972.4,0.65206935]
[1771491546505,0.0011,1972.7,1972.4,0.65206935]
[1771491546698,0.0013,1972.6,1972.4,0.65206935]
[1771491547507,0.0013,1972.5,1972.4,0.001]
[1771491547707,0.0013,1972.6,1972.4,0.001]
[1771491550507,0.6058446,1972.5,1972.3,0.001]
[1771491550829,2.15640726,1972.7,1972.3,0.001]
[1771491550830,0.6058446,1972.6,1972.3,0.001]
[1771491551518,0.0013,1972.5,1972.3,0.001]
[1771491551719,0.0013,1972.6,1972.3,0.001]
[1771491552541,0.0013,1972.5,1972.3,0.001]
[1771491554734,0.0013,1972.4,1972.3,0.001]
[1771491554946,0.0013,1972.5,1972.3,0.001]
[1771491555653,0.0013,1972.4,1972.3,0.001]
[1771491556040,0.6058446,1972.3,1971.8,1.26782952]
[1771491556255,0.6045446,1972.3,1971.8,1.26782952]
[1771491557312,0.6045446,1972.3,1971.7,5.07263843]
[1771491557617,0.0013,1972.2,1971.7,5.07263843]
[1771491557816,0.6045446,1972.3,1971.7,5.07263843]
[1771491558016,0.888,1972.2,1971.7,1.85395685]
[1771491559045,0.0013,1972.1,1971.7,1.26894137]
[1771491559742,0.0013,1972.1,1971.9,0.001]
[1771491560549,0.888,1972.3,1971.9,0.58601548]
[1771491561042,0.888,1972.3,1971.9,0.001]
[1771491561254,1.4925446,1972.3,1971.9,0.001]
[1771491563351,0.888,1972.3,1971.9,0.58601548]
[1771491564059,1.87201063,1972.5,1971.9,0.58601548]
[1771491564352,0.417,1972.4,1971.9,0.58601548]
[1771491565722,0.417,1972.4,1971.9,0.001]
[1771491565923,1.0215446,1972.4,1971.9,0.001]
[1771491566545,2.2890398,1972.4,1971.9,0.001]
[1771491567152,1.0215446,1972.4,1971.9,0.001]
[1771491568628,1.0215446,1972.4,1971.9,1.26881276]
[1771491571631,0.417,1972.4,1971.9,1.85382824]
[1771491571866,0.417,1972.4,1972.0,0.58501548]
[1771491572242,1.87305654,1972.6,1972.0,0.58501548]
[1771491572450,0.888,1972.5,1972.0,0.58601548]
[1771491572632,0.888,1972.5,1972.1,1.26768419]
[1771491572833,0.0011,1972.3,1972.1,1.26768419]
[1771491573154,0.0011,1972.3,1972.2,0.58501548]
[1771491573355,0.0011,1972.3,1972.1,1.26768419]
[1771491573754,0.0011,1972.3,1972.1,1.85269967]
[1771491575859,0.0011,1972.3,1972.0,1.26869641]
[1771491576076,0.0011,1972.3,1972.0,0.001]
[1771491579996,0.59982732,1972.3,1972.0,0.001]
[1771491581189,0.0011,1972.3,1972.0,0.001]
[1771491581490,0.8891,1972.3,1972.0,0.57973234]
[1771491583702,0.8891,1972.3,1972.0,0.001]
[1771491584294,0.8891,1972.3,1972.0,0.57973234]
[1771491585614,0.8891,1972.3,1972.1,0.001]
[1771491585769,0.0011,1972.2,1972.1,0.001]
[1771491587475,0.0011,1972.2,1972.1,0.57973234]
[1771491587900,0.0011,1972.2,1972.1,1.84741653]
[1771491589004,0.0011,1972.2,1972.1,1.26868419]
[1771491589171,0.0011,1972.2,1972.1,0.001]
[1771491591703,0.0011,1972.2,1972.1,0.57973234]
[1771491591908,0.0011,1972.4,1972.2,0.57873234]
[1771491592103,0.0022,1972.4,1972.2,0.57873234]
[1771491592410,0.0022,1972.4,1972.3,1.26755564]
[1771491593679,0.0022,1972.4,1972.2,1.84631277]
[1771491595011,0.0011,1972.4,1972.3,0.57873234]
[1771491595791,0.0011,1972.4,1972.2,1.26758043]
[1771491596607,0.59872732,1973.2,1972.5,0.0022]
[1771491596808,0.59982732,1973.1,1972.2,1.26758043]
[1771491597013,0.59982732,1973.1,1972.2,1.84631277]
[1771491597213,1.48482732,1973.0,1972.3,0.57873234]
[1771491597412,1.48372732,1973.0,1972.3,0.57873234]
[1771491597623,0.885,1973.0,1972.3,0.57873234]
[1771491598411,0.0011,1972.9,1972.5,0.57873234]
[1771491598578,0.0011,1973.0,1972.5,0.57873234]
[1771491599010,0.0011,1973.0,1972.6,1.26736287]
[1771491599506,0.0011,1972.9,1972.6,1.26736287]
[1771491600277,0.0011,1973.2,1972.7,0.57340554]
[1771491600522,0.411,1973.6,1972.9,5.55523521]
[1771491600689,0.54288931,1973.5,1972.7,0.0011]
[1771491600888,0.54288931,1973.5,1972.7,5.55633521]
[1771491601114,0.54288931,1973.5,1972.8,1.26833438]
[1771491601282,1.42688931,1973.5,1972.8,1.84063992]
[1771491601708,1.42688931,1973.5,1972.9,0.57230554]
[1771491602017,1.42688931,1973.5,1972.8,1.26833438]
[1771491602018,1.42688931,1973.5,1972.8,1.26723438]
[1771491602312,0.54288931,1973.4,1972.8,1.26723438]
[1771491602708,0.54288931,1973.4,1972.8,1.83953992]
[1771491603017,0.884,1973.6,1973.0,0.57230554]
[1771491603214,0.884,1973.6,1973.1,1.83934725]
[1771491603407,0.54288931,1973.7,1973.1,1.83934725]
[1771491603605,1.42688931,1973.7,1973.1,1.84044725]
[1771491603987,0.884,1973.7,1973.2,0.57340554]
[1771491604388,5.933662,1973.8,1973.2,0.57340554]
[1771491604714,0.884,1973.8,1973.3,0.0011]
[1771491604926,4.428556,1973.8,1973.3,0.0011]
[1771491605131,0.884,1973.8,1973.3,0.0011]
[1771491605628,0.884,1973.8,1973.3,1.26801329]
[1771491605985,0.54288931,1973.6,1972.7,11.19669651]
[1771491606188,0.54288931,1973.4,1972.7,5.6425613]
[1771491606428,0.54288931,1973.4,1972.8,0.0011]
[1771491606595,0.54288931,1973.4,1972.2,0.001]
[1771491606800,0.54288931,1973.4,1972.6,0.56231293]
[1771491606999,0.54288931,1973.4,1972.7,6.11754814]
[1771491607632,1.81068766,1973.6,1972.9,6.82240536]
[1771491607806,0.54395208,1973.5,1972.9,1.26717015]
[1771491608625,1.26673558,1973.6,1972.9,1.82948308]
[1771491608926,1.81068766,1973.6,1973.0,0.0011]
[1771491610124,0.54395208,1973.6,1973.0,0.56341293]
[1771491610422,1.81069392,1973.6,1973.0,0.56341293]
[1771491610906,1.26674184,1973.6,1973.1,0.0011]
[1771491611110,1.26674184,1973.6,1973.1,0.56341293]
[1771491611310,0.884,1973.5,1973.1,0.56341293]
[1771491611612,2.15074184,1973.6,1973.1,0.56341293]
[1771491611810,2.15074184,1973.6,1973.2,0.0011]
[1771491612119,1.26674184,1973.6,1973.2,0.0011]
[1771491612326,1.26670865,1973.7,1973.3,0.0011]
[1771491612527,0.884,1973.6,1973.3,0.0011]
[1771491612829,0.884,1973.6,1973.3,0.56341293]
[1771491613039,0.0011,1973.7,1973.4,0.56341293]
[1771491613327,0.0011,1973.7,1973.4,0.56231293]
[1771491613625,1.26649005,1974.0,1973.6,0.56231293]
[1771491613626,0.8851,1974.0,1973.6,0.56231293]
[1771491614125,0.0011,1974.0,1973.7,0.56341293]
[1771491614326,0.0011,1974.0,1973.7,0.56231293]
[1771491614630,0.0011,1974.0,1973.3,0.56231293]
[1771491614631,20.5,1973.9,1973.3,0.56231293]
[1771491614930,12.719983,1973.9,1973.3,0.56231293]
[1771491615135,12.014227,1973.9,1973.3,0.56231293]
[1771491615437,6.09918729,1973.8,1973.3,0.0011]
[1771491615927,0.54395208,1973.8,1973.3,0.0011]
[1771491616299,1.26665653,1973.7,1973.3,0.0011]
[1771491616501,0.885,1973.6,1973.3,0.0011]
[1771491617438,0.885,1973.6,1973.1,0.56331293]
[1771491617637,5.06559902,1974.2,1973.1,0.56331293]
[1771491617638,0.1024,1974.7,1973.4,0.56231293]
[1771491617938,0.7947616,1976.9,1973.1,0.001]
[1771491617939,9.12426618,1976.6,1976.1,0.26458669]
[1771491618246,0.95924914,1976.8,1975.8,1.88578328]
[1771491618247,11.37113303,1976.5,1975.9,1.26524621]
[1771491618531,8.84146217,1976.7,1976.0,3.00517123]
[1771491618717,1.97625677,1976.4,1976.1,1.02891446]
[1771491618921,17.629844,1976.5,1975.8,3.72754884]
[1771491619123,1.44295208,1976.3,1975.4,3.60611774]
[1771491619322,1.44295208,1976.3,1975.2,1.265672]
[1771491619522,5.11391333,1976.2,1975.2,1.265672]
[1771491619711,0.901,1976.1,1975.2,1.82798493]
[1771491620806,5.11391333,1976.0,1975.3,0.56231293]
[1771491621030,2.783235,1976.4,1975.5,0.56231293]
[1771491621222,2.783235,1976.4,1975.4,5.11391333]
[1771491621531,2.783235,1976.4,1975.3,5.11391333]
[1771491622318,2.783235,1976.4,1975.4,6.37947979]
[1771491622837,2.783235,1976.4,1975.4,1.26556646]
[1771491623019,2.783235,1976.4,1975.5,5.11391333]
[1771491623217,17.62436308,1976.3,1975.5,5.11391333]
[1771491623531,1.26493206,1976.4,1975.3,1.26559725]
[1771491623532,20.5,1976.1,1975.3,1.26559725]
[1771491623726,0.913,1976.0,1975.3,1.26559725]
[1771491623914,0.913,1976.0,1975.0,1.26582278]
[1771491623915,0.901,1975.9,1975.0,1.26582278]
[1771491624118,0.901,1975.9,1975.0,6.37973611]
[1771491624337,0.54395208,1975.8,1975.1,5.11391333]
[1771491624532,21.04395208,1975.7,1974.8,1.26591589]
[1771491624730,0.54395208,1975.6,1974.9,5.11391333]
[1771491624941,0.54395208,1975.6,1974.8,1.26591589]
[1771491625108,20.5,1975.5,1974.8,5.11391333]
[1771491625308,0.54395208,1975.5,1974.6,1.26603201]
[1771491625504,5.59072,1975.4,1974.6,5.11391333]
[1771491625819,16.838051,1975.2,1974.6,5.11391333]
[1771491626148,17.38200308,1975.2,1974.6,5.11391333]
[1771491626307,12.225366,1975.1,1974.6,5.11391333]
[1771491626635,3.459609,1975.1,1974.6,5.11391333]
[1771491627940,8.950576,1975.1,1974.6,5.11391333]
[1771491630335,0.54395208,1975.5,1974.6,6.37998974]
[1771491630643,0.54395208,1975.5,1974.6,5.11391333]
[1771491630644,17.776005,1975.3,1974.6,5.11391333]
[1771491631015,0.54395208,1975.2,1974.6,5.11391333]
[1771491631916,0.54395208,1975.2,1974.4,1.26616384]
[1771491632944,0.54226563,1975.2,1974.0,1.82877696]
[1771491633145,0.54226563,1975.2,1974.1,2.99259486]
[1771491633453,0.54226563,1975.2,1974.2,2.99259486]
[1771491633639,1.80796773,1975.2,1974.0,1.82877696]
[1771491633817,1.80796773,1975.2,1974.1,2.99336131]
[1771491634147,1.64403458,1975.2,1974.2,2.99336131]
[1771491634344,0.37833248,1975.2,1974.1,0.56231293]
[1771491634545,11.219975,1975.5,1974.4,0.56231293]
[1771491634712,20.5,1975.4,1974.4,0.56231293]
[1771491635045,20.5,1975.3,1974.5,6.38005665]
[1771491635256,20.095171,1975.3,1974.5,6.38005665]
[1771491635457,18.059171,1975.3,1974.5,6.38005665]
[1771491635758,17.24557,1975.3,1974.5,6.38005665]
[1771491636254,16.579869,1975.3,1974.5,6.38005665]
[1771491636562,13.519099,1975.3,1974.5,1.26614332]
[1771491636759,1.80946378,1975.5,1974.6,5.11391333]
[1771491636932,1.80946378,1975.5,1974.7,1.26601509]
[1771491639567,1.813,1975.4,1974.8,5.11391333]
[1771491639746,2.8886507,1975.4,1974.8,5.11391333]
[1771491641362,4.15426485,1975.4,1974.8,6.37986176]
[1771491642547,2.8886507,1975.4,1974.8,6.37986176]
[1771491642748,1.26553634,1975.5,1974.8,6.37986176]
[1771491642952,0.901,1975.4,1974.8,6.37986176]
[1771491643466,1.0756507,1975.3,1974.8,5.11391333]
[1771491643636,1.0756507,1975.2,1974.6,0.001]
[1771491643838,1.0756507,1975.2,1974.7,5.11391333]
[1771491645668,1.0756507,1975.2,1974.7,6.37989694]
[1771491645871,0.636,1975.1,1974.7,5.11391333]
[1771491646072,1.0756507,1975.0,1974.1,1.26634371]
[1771491646244,1.0756507,1975.0,1974.2,3.01308827]
[1771491646445,1.0756507,1975.0,1974.1,1.26634371]
[1771491646656,1.0756507,1974.8,1974.0,1.26646403]
[1771491648074,1.26600276,1974.8,1974.0,1.04281814]
[1771491648369,0.809,1974.7,1974.0,1.04281814]
[1771491649477,0.809,1974.7,1974.1,3.0221535]
[1771491649674,0.809,1974.7,1974.0,1.04281814]
[1771491649877,0.809,1974.7,1974.1,3.02215291]
[1771491650077,0.809,1974.7,1974.0,1.04281814]
[1771491650276,2.0750256,1974.7,1974.1,4.28852707]
[1771491650476,2.0750256,1974.7,1974.0,2.30922638]
[1771491650778,1.0756507,1974.6,1973.9,1.2727694]
[1771491651355,1.0756507,1974.6,1974.0,3.0251542]
[1771491651656,1.0756507,1974.6,1973.9,1.2727694]
[1771491651856,1.0756507,1974.6,1974.0,3.02515454]
[1771491652175,1.0756507,1974.6,1973.9,1.2727694]
[1771491652360,1.26614332,1974.5,1974.0,3.02752357]
[1771491652560,1.26614332,1974.5,1973.9,1.2727694]
[1771491652750,1.26614332,1974.5,1974.0,3.0275975]
[1771491652950,1.26614332,1974.5,1973.9,1.2727694]
[1771491653175,1.26614332,1974.5,1974.0,3.02759752]
[1771491653350,1.26614332,1974.5,1973.9,1.2727694]
[1771491653549,1.26614332,1974.5,1974.0,3.03038433]
[1771491653779,1.26614332,1974.5,1973.9,1.2727694]
[1771491653978,1.26614332,1974.5,1974.0,3.0303843]
[1771491654178,1.26614332,1974.5,1973.9,1.2727694]
[1771491654353,1.26614332,1974.5,1974.0,3.03198449]
[1771491654549,1.26614332,1974.5,1973.9,1.2727694]
[1771491654751,1.26614332,1974.5,1974.0,3.0313721]
[1771491654973,1.26614332,1974.5,1973.9,1.2727694]
[1771491655560,0.913,1974.6,1974.1,0.001]
[1771491655771,2.18018692,1974.6,1974.1,0.001]
[1771491656077,1.26718692,1974.6,1974.1,0.001]
[1771491656267,0.897,1974.5,1974.1,0.001]
[1771491657964,1.26718222,1974.6,1974.1,0.001]
[1771491658167,0.0011,1974.6,1974.1,1.04381814]
[1771491658372,0.8981,1974.6,1974.2,1.26633573]
[1771491659282,1.26580297,1975.1,1974.3,1.04281814]
[1771491659685,6.13861185,1975.2,1974.3,1.04281814]